Cogmind - Beta 9.4 @@@ ROGUE MODE // 2020.02.28 @ 18:11:18 // Winter2019/RPGLIKE Player: Wizzeh Result: Destroyed by Y-45 Defender with Beam Rifle Performance ------------- Evolutions (1) 500 Regions Visited (2) 400 Robots Destroyed (33) 165 Value Destroyed (806) 806 Prototype IDs (1) 20 Alien Tech Used (0) 0 Bonus (38) 38 TOTAL SCORE: 1929 Bonus ------- High Alert Combat Kills 38 Cogmind --------- Core Integrity 0/600 Matter 58/300 Energy 249/250 System Corruption 0% Temperature Cool (178) Movement Treading (180) Ox1 Location -9/Materials Parts ------- > --- POWER (1) -------- Ion Engine > --- PROPULSION (1) --- Light Treads > --- UTILITY (2) ------ Sensor Array > --- WEAPON (4) ------- Particle Gun Rocket Launcher Rocket Launcher Rocket Launcher > --- INVENTORY (1) ---- (None) Peak State ------------ > --- POWER ------------ Ion Engine > --- PROPULSION ------- Light Treads > --- UTILITY ---------- Sensor Array Hardened Light Armor Plating > --- WEAPON ----------- Improved EM Shotgun Improved EM Shotgun Improved EM Shotgun Improved EM Shotgun > --- INVENTORY -------- Grenade Launcher [Rating: 17] Favorites ----------- Power Ion Engine Engine Ion Engine Propulsion Light Treads Treads Light Treads Utility Light Armor Plating Device Sensor Array Processor Seismic Analyzer Protection Light Armor Plating Weapon Rocket Launcher Energy Gun Medium Laser Ballistic Gun Light Assault Rifle Launcher Rocket Launcher Build | -11 -10 -9 ------- Run | Scr Mat Mat Slots Evolved 4 | 1 1 2 Power . | . . . Propulsion . | . . . Utility 1 | . 1 . Weapon 3 | 1 . 2 Parts Attached 20 | 5 4 11 Power 1 | 1 . . Engine 1 | 1 . . Core . | . . . Reactor . | . . . Propulsion 1 | 1 . . Treads 1 | 1 . . Leg . | . . . Wheel . | . . . Hover . | . . . Flight . | . . . Utility 4 | . 3 1 Device 1 | . 1 . Storage . | . . . Processor 1 | . 1 . Hackware . | . . . Protection 2 | . 1 1 Artifact . | . . . Weapon 14 | 3 1 10 Energy Gun 7 | 2 . 5 Energy Cannon . | . . . Ballistic Gun 1 | 1 . . Ballistic Cannon . | . . . Launcher 6 | . 1 5 Special Weapon . | . . . Impact Weapon . | . . . Slashing Weapon . | . . . Piercing Weapon . | . . . Special Melee Weapon . | . . . Unidentified Prototypes 1 | . . 1 Parts Lost 1 | . . 1 Power . | . . . Propulsion . | . . . Utility 1 | . . 1 Weapon . | . . . Highest Loss Streak 1 | . . 1 Average Slot Usage (%) 99 | . 99 98 Engine 15 | . 17 12 Treads 15 | . 17 12 Device 6 | . . 12 Processor 8 | . 16 . Protection 11 | . 11 12 Energy Gun 17 | . 17 18 Launcher 21 | . 16 28 Naked Turns . | . . . Heaviest Build 27 | 8 14 27 Greatest Support 20 | 20 20 20 Greatest Overweight (x) 1 | . . 1 Average Overweight (x) . | . . . Largest Inventory Capacity 1 | . . 1 Average Capacity . | . . . Most Carried 1 | . . 1 Average Carried . | . . . Final Capacity 1 | . . 1 Final Carried . | . . . Class Distribution -------------------- 64% | Mutant 31% | Gunner 3% | Bomber Dominant Class ---------------- Mutant | -10/Materials Gunner | -9/Materials Resources | -11 -10 -9 ----------- Run | Scr Mat Mat Matter Collected 588 | 251 160 177 Remotely . | . . . Salvage Created 643 | . 233 410 Parts 53 | . 28 25 Haulers Intercepted 1 | . . 1 Recyclers Shooed . | . . . Parts Field Recycled . | . . . Retrieved Matter . | . . . Parts Self-Destructed . | . . . Prevented . | . . . Kills | -11 -10 -9 ------- Run | Scr Mat Mat Combat Hostiles Destroyed 26 | . 14 12 Guns 7 | . 4 3 AOE 19 | . 10 9 Classes Destroyed 8 | . 3 5 Worker 1 | . . 1 Builder 2 | . . 2 Hauler 1 | . . 1 Operator 1 | . . 1 Watcher 2 | . 2 . Swarmer 9 | . 9 . Grunt 13 | . 5 8 Sentry 4 | . . 4 Best Kill Streak 5 | . 5 4 Combat Bots Only 4 | . 4 3 Max Kills in Single Turn 4 | . 3 4 Gunslinging . | . . . Exploded 3 | . 3 3 Melee . | . . . Uniques/NPCs Destroyed . | . . . Combat | -11 -10 -9 -------- Run | Scr Mat Mat Damage Taken 1179 | . 280 899 Core 878 | . 222 656 Absorbed by Shields . | . . . Redirected to Core 688 | . 147 541 Core Remaining (%) 88 | 100 77 . Volleys Fired 45 | 1 23 21 Largest 4 | 2 2 4 Hottest 180 | 70 80 180 Shots Fired 97 | 2 36 59 Gun 56 | 2 23 31 Cannon . | . . . Launcher 41 | . 13 28 Special . | . . . Kinetic 1 | 1 . . Thermal 31 | 1 23 7 Explosive 41 | . 13 28 Electromagnetic 24 | . . 24 Robot Hit Streak 8 | . 8 7 Robot Miss Streak 3 | . 2 3 Penetration Max . | . . . Secondary Targets . | . . . Shots Hit Robots 50 | . 17 33 Core Hits 50 | . 20 30 Critical Hits . | . . . Critical Kills . | . . . Critical Parts Destroyed . | . . . Melee Attacks . | . . . Impact . | . . . Slashing . | . . . Piercing . | . . . Sneak Attacks . | . . . Combat Hostiles . | . . . Follow-up Attacks . | . . . Damage Inflicted 2080 | . 662 1418 Guns 527 | . 160 367 Cannons . | . . . Explosions 1553 | . 502 1051 Melee . | . . . Ramming . | . . . Kinetic . | . . . Thermal 330 | . 160 170 Explosive 1460 | . 502 958 Electromagnetic 290 | . . 290 Impact . | . . . Slashing . | . . . Piercing . | . . . Highest Corruption . | . . . Average Corruption . | . . . Corruption Purged . | . . . Overload Shots . | . . . Overflow Damage 76 | . 6 70 Projectiles . | . . . Explosions 76 | . 6 70 Melee . | . . . Knockbacks . | . . . Impact . | . . . Kinetic . | . . . Secondary . | . . . Self-Inflicted Damage 159 | . 128 31 Shots 6 | . 4 2 Rammed . | . . . Targets Rammed . | . . . Kicked . | . . . Crushed . | . . . Highest Temperature 282 | 30 99 282 Average Temperature 71 | 18 36 92 Received Heat Transfer 342 | . 48 294 Siege Activations . | . . . Robots Corrupted . | . . . Combat Hostiles . | . . . Parts Fried 1 | . . 1 Impact Corruptions . | . . . Robots Melted . | . . . Combat Hostiles . | . . . Parts Melted 1 | . 1 . Heat Transferred 766 | . 481 285 Parts Sabotaged . | . . . Parts Stolen . | . . . Parts Stripped . | . . . Power Chain Reactions 3 | . . 3 Missiles Intercepted . | . . . Alert | -11 -10 -9 ------- Run | Scr Mat Mat Peak Influence 459 | . 307 459 Average Influence 185 | . 135 265 Maximum Alert Level 2 | . 1 2 Low Security (%) 57 | 100 79 26 Level 1 35 | . 20 58 Level 2 6 | . . 14 Level 3 . | . . . Level 4 . | . . . Level 5 . | . . . High Security . | . . . Max Security . | . . . Squads Dispatched 6 | . 3 3 Investigation 2 | . 1 1 Extermination . | . . . Reinforcement 4 | . 2 2 Assault . | . . . Garrison . | . . . Intercept . | . . . Construction Impeded . | . . . Haulers Reinforced . | . . . Stealth | -11 -10 -9 --------- Run | Scr Mat Mat Distress Signals 3 | . 2 1 Communications Jammed . | . . . Distress Signals . | . . . Times Spotted 38 | . 20 18 Peak Tracking Total 5 | . 5 4 Tactical Retreats 1 | . 1 . Traps | -11 -10 -9 ------- Run | Scr Mat Mat Traps Triggered . | . . . Indirectly . | . . . Trap Hack Attempts . | . . . Triggered . | . . . Disarmed . | . . . Reprogrammed . | . . . Reused . | . . . Traps Extracted . | . . . Installed . | . . . Triggered . | . . . Machines | -11 -10 -9 ---------- Run | Scr Mat Mat Machines Disabled 2 | . . 2 Max in Single Turn 1 | . . 1 Machines Sabotaged . | . . . Garrisons Compromised . | . . . Overloaded Fab Kills . | . . . Fab Network Shutdowns . | . . . Hacking | -11 -10 -9 --------- Run | Scr Mat Mat Machines Accessed 12 | . 9 3 Terminals 8 | . 6 2 Fabricators . | . . . Repair Stations 1 | . 1 . Recycling Units 3 | . 2 1 Scanalyzers . | . . . Garrison Access . | . . . Total Hacks 33 | . 25 8 Successful 20 | . 16 4 Failed 13 | . 9 4 Catastrophic 1 | . 1 . Database Lockouts . | . . . Manual 1 | . 1 . Terminals 24 | . 19 5 Fabricators . | . . . Repair Stations 1 | . 1 . Recycling Units 8 | . 5 3 Scanalyzers . | . . . Garrison Access . | . . . Terminal Hacks 14 | . 12 2 Record 6 | . 6 . Emergency Access Points 1 | . 1 . Locate Traps 2 | . 2 . Dispatch Records 1 | . 1 . Recall Assault 2 | . 1 1 Zone Layout 2 | . 1 1 Fabricator Hacks . | . . . Repair Station Hacks 1 | . 1 . Scan Component 1 | . 1 . Recycling Unit Hacks 5 | . 3 2 Report Inventory 3 | . 2 1 Retrieve Matter 1 | . 1 . Retrieve Components 1 | . . 1 Scanalyzer . | . . . Garrison Access Hacks . | . . . Unauthorized Hacks . | . . . Terminals . | . . . Fabricators . | . . . Repair Stations . | . . . Recycling Units . | . . . Scanalyzers . | . . . Garrison Access . | . . . Data Cores Recovered 1 | . . 1 Used . | . . . Hacking Detections 8 | . 6 2 Full Trace Events 5 | . 4 1 Feedback Events . | . . . Feedback Blocked . | . . . Robot Schematics Acquired . | . . . Robots Built . | . . . Matter . | . . . Time . | . . . Total Robot Build Rating . | . . . Part Schematics Acquired . | . . . Parts Built . | . . . Matter . | . . . Time . | . . . Total Part Build Rating . | . . . Parts Repaired . | . . . Time . | . . . Parts Recycled . | . . . Recycled Matter . | . . . Retrieved Matter . | . . . Retrieved Components 6 | . . 6 Parts Scanalyzed . | . . . Part Schematics Acquired . | . . . Parts Damaged . | . . . Bothacking | -11 -10 -9 ------------ Run | Scr Mat Mat Used RIF Installer . | . . . Robots Hacked . | . . . Non-combat . | . . . Combat . | . . . Robot Hacks Applied . | . . . Relay Couplers Released . | . . . Robots Rewired . | . . . Allies Hacked . | . . . Hacks Repelled . | . . . Allies | -11 -10 -9 -------- Run | Scr Mat Mat Total Allies . | . . . Largest Group . | . . . Highest-Rated Group . | . . . Highest-Rated Ally . | . . . Total Orders . | . . . Ally Attacks . | . . . Total Damage . | . . . Kills . | . . . Allies Corrupted . | . . . Allies Melted . | . . . Intel | -11 -10 -9 ------- Run | Scr Mat Mat Robot Analysis Total . | . . . Derelict Logs Recovered . | . . . Drone Launches . | . . . Drone Recoveries . | . . . Exploration | -11 -10 -9 ------------- Run | Scr Mat Mat Turns Passed 1558 | 71 815 672 Spaces Moved 838 | 48 464 326 Core 14 | 14 . . Treads 824 | 34 464 326 Legs . | . . . Wheels . | . . . Hover . | . . . Flight . | . . . Fastest Speed 50 | 50 160 160 Average Speed 164 | 127 160 176 Slowest Speed 180 | 160 160 180 Overloaded Moves . | . . . Propulsion Burnouts . | . . . Robots Hopped . | . . . Cave-ins Triggered . | . . . Exploration Rate (%) 39 | 5 83 29 Regions Visited 2 Branch Regions . Pre-discovered Areas . | . . . Known Exits Taken . | . . . Unknown Exits Taken 2 | 1 1 . Scrap Searched . | . . . Spaces Dug . | . . . Terrain Destroyed 238 | . 68 170 Melee . | . . . Projectile . | . . . AOE 238 | . 68 170 Actions | -11 -10 -9 --------- Run | Scr Mat Mat Total 936 | 54 500 382 Wait 4 | . 1 3 Move 836 | 47 463 326 Hop . | . . . Pick Up 2 | . . 2 Fast Attach 17 | 5 4 8 Attach 2 | . . 2 Detach . | . . . Swap 1 | . . 1 Drop 12 | 1 2 9 Fire 45 | 1 23 21 Melee . | . . . Ram . | . . . Kick . | . . . Crush . | . . . Escape Stasis . | . . . Rewire . | . . . Trap . | . . . Miscellaneous 17 | . 7 10 Route ------- -11/Scrapyard -10/Materials (discovered 3 exits: *Mat x2 / [*Min]) -9/Materials (discovered 1 exit: [*Mat]) History --------- Turn | Location | Event 7 | -11/Scrapyard | Discovered new exit (range 16) 26 | -11/Scrapyard | Upgraded with Weapon slot (x1) 72 | -11/Scrapyard | Entered Materials 311 | -10/Materials | Upgraded with Utility slot (x1) 334 | -10/Materials | Build established: Mutant 395 | -10/Materials | Discovered new exit (range 14) 629 | -10/Materials | Discovered new exit (range 16) 704 | -10/Materials | Reached level 2 854 | -10/Materials | Discovered new exit (range 11) 887 | -10/Materials | Entered another Materials area 889 | -9/Materials | Reached level 3 968 | -9/Materials | Upgraded with Weapon slot (x2) 1147 | -9/Materials | Discovered new exit (range 16) 1269 | -9/Materials | Build established: Gunner 1431 | -9/Materials | Reached level 4 1456 | -9/Materials | Core integrity fell below 50% 1543 | -9/Materials | Core integrity fell below 20% 1559 | -9/Materials | Destroyed by Y-45 Defender with Beam Rifle Last Messages --------------- No tasked assault squads found. 01446_ ALERT: Suspicious activity at Terminal M005. Dispatching Investigation squad. 01454_ The unstable cave ceiling collapses. 01483_ U-05 Engineer builds a Wall. 01500_ U-05 Engineer lays Concrete. 01502_ U-05 Engineer builds a Wall. 01509_ Dropped Rocket Launcher. 01510_ U-05 Engineer lays Concrete. 01512_ U-05 Engineer builds a Wall. 01512_ G-34 Mercenary destroyed. 01512_ U-05 Engineer destroyed. 01514_ G-34 Mercenary destroyed. 01518_ Acquired 53 matter. 01527_ Used Protomatter to restore core integrity (+51, depleted) 01544_ Dropped Grenade Launcher. 01546_ Acquired Particle Gun. 01555_ Hrd. Light Armor Plating destroyed. 01558_ Y-45 Defender destroyed. [Achievement: First Step to Greatness] Map ----- +----------------------------------------------------+ | ???????# # ######## # # #? | | ???????# # # ### ## #? | | ???????# # # ## # # #? | | ???????# + # # ## # ##? | | ?####### # # # ##+# ## | | ? # # + # # | | ? # # # # ## | | ? # # ####/###""" #? | | ? """ ########## [ ###" " #? | | ?" """ #??????### [[[ ## #? | | ?" """ #??????#"" = ### #? | | ? #??????#"T = ###" #? | | ? #??????#"" = ### #? | | ?#+############## ### = #? | | ? # # ## | | ? ######### Y# # ## | | ? #??????## ##+### | | ?#+###########??????# ] # # | | ? #???????????# t= * # # | | ?"""" #???????????# =%* # # | | ?"""" #???????????# = % # # | | ?"""" #?????????### #= ## | | ? #?????????# # # | | ?"""" #?????????# """"" ## ## | | ?"""" ########??# """"" ]# ##?##? | | ?"""" # #??# """""@ # #????? | | ? # #??# """"" # #????? | | ??????????????????#?""""" # #????? | | ????????????????????""""" # #????? | | ????????????????????""""" # #????? | | ????????????????????? # #????? | | ?????????????????????##########????? | | ???????????????????????????????????? | | ???????????????????????????????????? | | ???????????????????????????????????? | | ???????????????????????????????????? | | ???????????????????????????????????? | | ???????????????????????????????????? | | ???????????????????????????????????? | | ???????????????????????????????????? | | | | | | | | | | | | | | | | | | | | | +----------------------------------------------------+ Best States ------------- Heat Dissipation 25 Energy Generation 10 Energy Capacity 250 Matter Stores 300 Matter Capacity 300 Sight Range 16 Robot Scan Range 10 Terrain Scan Density 60 Armor Coverage 150 Evasion (%) 40 Recoil Reduction 1 Item Schematics ----------------- None Robot Schematics ------------------ None Fabricated ------------ Nothing Alien Tech Used ----------------- None Achievements -------------- First Step to Greatness Remodeling Challenges ------------ None RPGLIKE | -11 -10 -9 --------- Run | Scr Mat Mat Levels Raised 3 | . 1 2 XP Earned 8118 | 3000 1815 3303 XP Spent 3150 | 500 500 2150 Upgrades 5 | 1 1 3 Utility Slot 1 | . 1 . Weapon Slot 3 | 1 . 2 Inventory Capacity 1 | . . 1 Protomatter Created 144 | . 62 82 Integrity Restored 279 | . 90 189 Core 273 | . 84 189 Parts 6 | . 6 . Protomatter Decayed . | . . . Game ------ Seed GravmagCatalystRail Manual? 0 Play Time 00:22:51 Cumulative 0.7 hours Start 2020.02.28 @ 17:46:42 End 2020.02.28 @ 18:11:18 Sessions 1 Manual Loads 0 Difficulty Rogue Special Mode Winter2019/RPGLIKE Game No. 5 Rogue 5 Adventurer 0 Explorer 0 Win Type - Total 0 Types 0/0/0/0/0/0/0 Lore% 5 Gallery% 8 Achievement% 10 Wizard Run 0 Options --------- ASCII 0 Keyboard 0 Movement Mouse Keybinds 0 Fullscreen 0 Font 28/Smallcaps Map View 76x50 Tactical HUD 1 Map Filters NONE Filters NONE Steam 1 RUN: 3a7764c7-23d1-442e-baf6-30174f4256e3